bitfinex/quotes_BTCUSD_20240828
["timestamp","ask_amount","ask_price","bid_price","bid_amount"]
[1724870444006,0.02652638,59124.0,59123.0,1.27932254]
[1724870444803,0.02652638,59124.0,59123.0,0.94104554]
[1724870445034,0.02652638,59124.0,59123.0,1.27932254]
[1724870445272,0.02652638,59124.0,59123.0,1.35922254]
[1724870446505,0.02652638,59124.0,59123.0,1.02094554]
[1724870446978,0.02652638,59124.0,59123.0,2.01415085]
[1724870452009,0.000818,59138.0,59137.0,0.645295]
[1724870452225,0.000818,59138.0,59137.0,1.97661731]
[1724870452455,0.000818,59138.0,59137.0,2.31681431]
[1724870452679,0.000818,59138.0,59137.0,2.33088221]
[1724870452900,0.000818,59138.0,59137.0,2.32888221]
[1724870454473,0.000818,59138.0,59137.0,2.33088221]
[1724870455273,0.000818,59138.0,59137.0,2.34488221]
[1724870455499,0.000818,59138.0,59137.0,2.33088221]
[1724870455745,0.000818,59138.0,59137.0,2.34488221]
[1724870455969,0.000818,59138.0,59137.0,0.0881679]
[1724870455970,1.18449,59138.0,59137.0,0.0881679]
[1724870456179,1.18449,59138.0,59137.0,0.0280679]
[1724870456455,1.18449,59138.0,59137.0,0.014]
[1724870456456,1.377719,59138.0,59137.0,0.014]
[1724870456688,1.25099,59138.0,59137.0,0.014]
[1724870456879,1.33379,59138.0,59137.0,0.014]
[1724870457705,1.36031178,59138.0,59137.0,0.014]
[1724870457910,1.36031178,59138.0,59127.0,0.169126]
[1724870457911,0.169115,59132.0,59127.0,0.169126]
[1724870458434,0.169119,59130.0,59125.0,0.507397]
[1724870458656,0.169119,59130.0,59126.0,0.169129]
[1724870458989,0.02652293,59129.0,59126.0,0.169129]
[1724870459385,0.02652293,59129.0,59127.0,0.008]
[1724870459593,0.02652293,59129.0,59127.0,0.169127]
[1724870459804,0.02652293,59129.0,59128.0,0.169124]
[1724870460753,0.02652293,59129.0,59128.0,0.507373]
[1724870460958,0.02652293,59129.0,59128.0,0.583973]
[1724870461344,0.02652293,59129.0,59128.0,0.245724]
[1724870461580,0.02652293,59129.0,59128.0,0.595973]
[1724870461798,0.02652293,59129.0,59128.0,1.23890131]
[1724870462221,0.02652293,59129.0,59128.0,1.25290131]
[1724870462695,0.02652293,59129.0,59128.0,1.59115031]
[1724870462925,0.067318,59138.0,59137.0,0.507295]
[1724870462926,0.000818,59138.0,59137.0,0.507295]
[1724870463145,0.000818,59138.0,59137.0,1.50042031]
[1724870463405,0.589706,59138.0,59137.0,0.65492831]
[1724870463881,0.927898,59138.0,59137.0,0.65492831]
[1724870464104,0.589706,59138.0,59137.0,0.65492831]
[1724870464330,0.589706,59138.0,59137.0,0.6683617]
[1724870465012,0.589706,59138.0,59137.0,0.6723617]
[1724870465244,0.589706,59138.0,59137.0,0.6683617]
[1724870465471,0.589706,59138.0,59137.0,0.6733617]
[1724870466190,0.927898,59138.0,59137.0,0.6733617]
[1724870466459,0.992798,59138.0,59137.0,0.6733617]
[1724870467624,1.01931909,59138.0,59137.0,0.01843339]
[1724870467873,0.169106,59135.0,59131.0,0.169114]
[1724870468097,0.09223909,59138.0,59129.0,0.0799]
[1724870468335,0.09223909,59138.0,59132.0,0.338225]
[1724870468336,0.19643709,59138.0,59132.0,0.338225]
[1724870468565,0.19643709,59138.0,59134.0,0.169106]
[1724870468828,0.19643709,59138.0,59137.0,0.004]
[1724870469051,0.02733909,59138.0,59137.0,0.507295]
[1724870469282,0.02733909,59138.0,59137.0,1.24212331]
[1724870469504,0.02733909,59138.0,59137.0,1.98281731]
[1724870469742,0.02733909,59138.0,59137.0,1.98081731]
[1724870470243,0.02733909,59138.0,59137.0,1.64262031]
[1724870470937,0.02733909,59138.0,59137.0,1.58032031]
[1724870471614,0.02733909,59138.0,59137.0,1.58932031]
[1724870471851,0.02733909,59138.0,59137.0,1.58032031]
[1724870472088,0.02733909,59138.0,59137.0,1.6077523]
[1724870472530,0.169071,59147.0,59143.0,0.169079]
[1724870473005,0.338132,59149.0,59141.0,0.338169]
[1724870473006,0.507198,59149.0,59144.0,0.18250087]
[1724870473226,0.169044,59157.0,59148.0,0.338134]
[1724870473441,0.169044,59157.0,59153.0,0.169053]
[1724870473655,0.1,59156.0,59153.0,0.169053]
[1724870473931,0.1,59156.0,59153.0,0.01340459]
[1724870474163,0.1,59156.0,59152.0,0.169054]
[1724870474400,0.1,59156.0,59153.0,0.01340459]
[1724870474826,0.35576602,59158.0,59149.0,0.65492831]
[1724870474827,0.169059,59151.0,59149.0,0.65492831]
[1724870475923,0.169059,59151.0,59149.0,0.66492831]
[1724870476139,0.169061,59150.0,59149.0,0.66492831]
[1724870476774,0.0814,59153.0,59149.0,0.01]
[1724870477001,0.1,59155.0,59153.0,0.169053]
[1724870477214,0.1,59157.0,59153.0,0.507159]
[1724870477724,0.02733249,59154.0,59153.0,0.507159]
[1724870478776,0.02733249,59154.0,59153.0,0.516159]
[1724870479028,0.02733249,59154.0,59153.0,1.192371]
[1724870479262,0.02733249,59154.0,59153.0,1.267871]
[1724870479503,0.02733249,59154.0,59153.0,1.672477]
[1724870480619,0.02733249,59154.0,59153.0,1.334371]
[1724870480837,0.02733249,59154.0,59153.0,1.325371]
[1724870481254,0.02733249,59154.0,59153.0,1.339371]
[1724870482556,0.00818,59164.0,59153.0,1.339371]
[1724870482557,0.00818,59164.0,59157.0,0.338079]
[1724870482768,0.00818,59164.0,59163.0,0.169024]
[1724870482982,0.00818,59164.0,59163.0,1.13466882]
[1724870483631,0.00818,59164.0,59163.0,0.79661982]
[1724870483839,0.00818,59164.0,59163.0,1.13466882]
[1724870484261,0.00818,59164.0,59163.0,1.47271782]
[1724870484494,0.00818,59164.0,59163.0,1.21776882]
[1724870484940,0.00818,59164.0,59163.0,0.71069582]
[1724870485161,0.594744,59164.0,59163.0,0.62759582]
[1724870485460,1.35763675,59164.0,59163.0,0.64059582]
[1724870485688,0.507141,59155.0,59154.0,0.62759582]
[1724870485901,0.985035,59155.0,59154.0,0.62759582]
[1724870486117,0.646941,59155.0,59154.0,0.62759582]
[1724870486540,0.646941,59155.0,59154.0,0.64092446]
[1724870486760,0.67345327,59155.0,59154.0,0.64092446]
[1724870486997,0.33535927,59155.0,59154.0,0.64092446]
[1724870487210,0.25585927,59155.0,59154.0,0.64092446]
[1724870487436,0.25585927,59155.0,59154.0,0.80997446]
[1724870487437,0.02651227,59155.0,59154.0,0.80997446]
[1724870487657,0.02651227,59155.0,59154.0,0.64092446]
[1724870488082,0.02651227,59155.0,59154.0,0.65392446]
[1724870488506,0.02651227,59155.0,59154.0,0.82297446]
[1724870490011,0.00818,59164.0,59163.0,0.169024]
[1724870490237,0.00818,59164.0,59163.0,0.583273]
[1724870490460,0.00818,59164.0,59163.0,0.59659544]
[1724870491093,0.00818,59164.0,59163.0,0.18534644]
[1724870491314,0.177201,59164.0,59163.0,0.01632244]
[1724870491540,0.177201,59164.0,59159.0,0.169035]
[1724870491541,0.169025,59163.0,59159.0,0.169035]
[1724870491751,0.260401,59164.0,59163.0,0.01334272]
[1724870491963,0.260401,59164.0,59163.0,0.014]
[1724870492206,0.260401,59164.0,59129.0,0.0795]
[1724870492207,0.0629,59138.0,59129.0,0.0795]
[1724870492430,0.0629,59138.0,59128.0,0.0008998]
[1724870492431,0.507295,59137.0,59136.0,0.50540786]
[1724870492653,0.338203,59136.0,59130.0,0.01276262]
[1724870492878,0.0629,59138.0,59130.0,0.01276262]
[1724870492879,0.338199,59137.0,59130.0,0.01276262]
[1724870493380,0.169103,59136.0,59129.0,0.16912]
[1724870493584,0.169109,59134.0,59131.0,0.01276956]
[1724870493794,0.507307,59136.0,59130.0,0.01277072]
[1724870494003,0.169105,59135.0,59132.0,0.0127684]
[1724870494204,0.169105,59135.0,59131.0,0.01276956]
[1724870494418,0.169101,59137.0,59133.0,0.01276724]
[1724870494627,0.169106,59135.0,59132.0,0.0127684]
[1724870494861,0.169106,59135.0,59134.0,0.01276608]
[1724870495090,0.169107,59134.0,59128.0,0.0008998]
[1724870495300,0.169107,59134.0,59131.0,0.005]
[1724870495517,0.169103,59136.0,59130.0,0.507351]
[1724870495959,0.169107,59134.0,59132.0,0.003]
[1724870496367,0.169102,59136.0,59132.0,0.003]
[1724870496801,0.169105,59135.0,59132.0,0.003]
[1724870497026,0.169101,59137.0,59132.0,0.003]
[1724870497272,0.338186,59139.0,59132.0,0.169111]
[1724870497515,0.338186,59139.0,59133.0,0.62759582]
[1724870497758,0.169102,59136.0,59133.0,0.62759582]
[1724870498681,0.169102,59136.0,59133.0,0.62859582]
[1724870498917,0.169083,59143.0,59132.0,0.338223]
[1724870499152,0.33815,59146.0,59128.0,0.0008998]
[1724870499153,0.33815,59146.0,59139.0,0.16909]
[1724870499424,0.169083,59143.0,59139.0,0.16909]
[1724870499880,0.16908,59144.0,59139.0,0.169091]
[1724870500100,0.35582202,59148.0,59138.0,0.338191]
[1724870500338,0.169075,59146.0,59142.0,0.169083]
[1724870500575,0.1,59147.0,59141.0,0.169085]
[1724870500576,0.169076,59145.0,59141.0,0.169085]
[1724870500832,0.1,59147.0,59143.0,0.16908]
[1724870501073,0.26907,59147.0,59143.0,0.16908]
[1724870501573,0.001,59146.0,59143.0,0.16908]
[1724870501794,0.26907,59147.0,59143.0,0.16908]
[1724870502258,0.16907,59147.0,59144.0,0.0128007]
[1724870502738,0.18675602,59148.0,59144.0,0.1818787]
[1724870503460,0.16907,59147.0,59144.0,0.0128007]
[1724870503714,0.16907,59147.0,59141.0,0.338171]
[1724870503715,0.001,59146.0,59143.0,0.17508]
[1724870503963,0.16907,59147.0,59145.0,0.01279954]
[1724870504632,0.16907,59147.0,59144.0,0.0128007]
[1724870504862,0.16907,59147.0,59143.0,0.16908]
[1724870504863,0.001,59146.0,59143.0,0.17608]
[1724870505815,0.16907,59147.0,59143.0,0.16908]
[1724870506750,0.169073,59146.0,59145.0,0.0008998]
[1724870507243,0.169073,59146.0,59145.0,0.0068998]
[1724870507472,0.19559059,59146.0,59145.0,0.0068998]
[1724870507739,0.02651759,59146.0,59145.0,0.4215508]
[1724870508007,0.146418,59155.0,59146.0,0.169073]
[1724870508008,0.001,59147.0,59146.0,0.169073]
[1724870508329,0.001,59147.0,59146.0,0.845365]
[1724870508500,0.001,59147.0,59146.0,0.844365]
[1724870508717,0.169051,59154.0,59150.0,0.169061]
[1724870509180,0.169053,59153.0,59150.0,0.168061]
[1724870509647,0.066018,59155.0,59147.0,0.066]
[1724870509648,0.000818,59155.0,59147.0,0.066]
[1724870509868,0.000818,59155.0,59152.0,0.169055]
[1724870510361,0.169865,59155.0,59152.0,0.169055]
[1724870510592,0.169865,59155.0,59152.0,0.168055]
[1724870510828,0.169865,59155.0,59149.0,0.338126]
[1724870510829,0.19637858,59155.0,59149.0,0.338126]
[1724870511063,0.19637858,59155.0,59152.0,0.003]
[1724870511303,0.169051,59154.0,59152.0,0.003]
[1724870511558,0.02733158,59155.0,59152.0,0.003]
[1724870511783,0.19637958,59155.0,59152.0,0.009]
[1724870512002,0.19637958,59155.0,59151.0,0.169058]
[1724870512259,0.16905,59154.0,59151.0,0.79665382]
[1724870512722,0.16905,59154.0,59151.0,0.62759582]
[1724870512723,0.169055,59152.0,59151.0,0.62759582]
[1724870512941,0.507166,59152.0,59151.0,0.62759582]
[1724870513371,0.53368074,59152.0,59151.0,0.62759582]
[1724870513593,0.19556974,59152.0,59151.0,0.62759582]
[1724870513800,0.53368074,59152.0,59151.0,0.62759582]
[1724870514067,0.000818,59155.0,59142.0,0.404165]
[1724870514068,0.000818,59155.0,59154.0,0.16905]
[1724870514494,0.000818,59155.0,59154.0,0.50615]
[1724870514712,0.000818,59155.0,59154.0,0.58865]
[1724870515158,0.000818,59155.0,59154.0,0.99275]
[1724870515379,0.000818,59155.0,59154.0,0.65465]
[1724870516086,0.000818,59155.0,59154.0,0.31655]
[1724870516734,0.001818,59155.0,59154.0,0.32455]
[1724870516952,0.000818,59155.0,59154.0,0.31655]
[1724870517172,0.000818,59155.0,59154.0,0.32934434]
[1724870517381,0.000818,59155.0,59154.0,0.34134434]
[1724870518469,0.000818,59155.0,59154.0,0.10729434]
[1724870518880,0.000818,59155.0,59154.0,0.27634434]
[1724870519737,0.000818,59155.0,59154.0,0.02479434]
[1724870520419,1.245547,59155.0,59154.0,0.02479434]
[1724870520858,1.245547,59155.0,59154.0,0.012]
[1724870521125,1.245547,59155.0,59139.0,0.62759582]
[1724870521126,0.845365,59146.0,59139.0,0.62759582]
[1724870522267,0.920565,59146.0,59139.0,0.62759582]
[1724870522718,0.845365,59146.0,59139.0,0.62759582]
[1724870522930,0.87188299,59146.0,59139.0,0.62759582]
[1724870523780,0.87188299,59146.0,59145.0,0.0028998]
[1724870524219,0.87188299,59146.0,59145.0,0.63049562]
[1724870525527,0.87188299,59146.0,59145.0,0.0028998]
[1724870525528,1.79376329,59146.0,59145.0,0.0028998]
[1724870525786,1.91440862,59146.0,59145.0,0.0028998]
[1724870526243,2.25255462,59146.0,59145.0,0.0028998]
[1724870526487,1.18385,59129.0,59128.0,0.0008998]
[1724870526746,1.61648787,59129.0,59128.0,0.0008998]
[1724870526970,1.76709257,59129.0,59128.0,0.0008998]
[1724870527196,2.10533557,59129.0,59128.0,0.0008998]
[1724870527448,2.15484237,59129.0,59128.0,0.0008998]
[1724870527678,2.10725958,59129.0,59128.0,0.0148998]
[1724870527926,2.57701435,59129.0,59128.0,0.0008998]
[1724870528152,2.26158275,59129.0,59128.0,0.0008998]
[1724870528371,2.34302796,59129.0,59128.0,0.0008998]
[1724870529215,2.31769703,59129.0,59128.0,0.0008998]
[1724870529460,0.169193,59104.0,59103.0,0.50540786]
[1724870529675,0.80481687,59104.0,59103.0,0.50540786]
[1724870529909,0.169197,59103.0,59097.0,0.169211]
[1724870530173,0.338386,59104.0,59097.0,0.169211]
[1724870530174,0.169199,59102.0,59098.0,0.01289906]
[1724870530390,0.169205,59100.0,59098.0,0.01289906]
[1724870530622,0.169205,59100.0,59095.0,0.169217]
[1724870530834,0.169205,59100.0,59099.0,0.01296973]
[1724870531089,0.169205,59100.0,59095.0,0.169217]
[1724870531319,0.169199,59102.0,59097.0,0.169211]
[1724870531572,0.170206,59100.0,59098.0,0.007]
[1724870531785,0.001,59100.0,59098.0,0.02004294]
[1724870533276,0.338395,59103.0,59098.0,0.01304294]
[1724870533499,0.169202,59101.0,59096.0,0.169213]
[1724870533694,0.001,59100.0,59099.0,0.002]
[1724870533898,0.001,59100.0,59099.0,0.01304813]
[1724870534110,0.001,59100.0,59096.0,0.169213]
[1724870534346,0.001,59100.0,59098.0,0.002]
[1724870534578,0.340409,59100.0,59099.0,0.0616]
[1724870534783,0.169206,59100.0,59099.0,0.01304813]
[1724870534985,0.001,59100.0,59099.0,0.002]
[1724870535198,0.001,59100.0,59099.0,0.01504813]
[1724870535434,0.001,59100.0,59099.0,0.01304813]
[1724870536541,0.001,59100.0,59097.0,0.169213]
[1724870536750,0.002,59100.0,59099.0,0.18225513]
[1724870536961,0.338392,59103.0,59098.0,0.0130494]
[1724870537157,0.1692,59102.0,59097.0,0.169211]
[1724870537363,0.1692,59102.0,59096.0,0.338432]
[1724870537364,0.001,59100.0,59099.0,0.01504813]
[1724870537786,0.001,59100.0,59099.0,0.585222]
[1724870537999,0.002,59100.0,59099.0,1.00258513]
[1724870538213,0.001,59100.0,59099.0,1.00258513]
[1724870538632,0.002,59100.0,59099.0,1.00258513]
[1724870539496,0.002,59100.0,59099.0,1.34100013]
[1724870539703,0.001,59100.0,59099.0,1.34100013]
[1724870539908,0.02653543,59104.0,59103.0,0.92358]
[1724870540324,0.02653543,59104.0,59103.0,1.27503939]
[1724870544580,0.02735343,59104.0,59103.0,1.27503939]
[1724870545009,0.02735343,59104.0,59103.0,0.93664739]
[1724870545219,0.02735343,59104.0,59103.0,1.56424321]
[1724870545964,0.02735343,59104.0,59103.0,0.64066321]
[1724870545965,0.19654643,59104.0,59103.0,0.64066321]
[1724870546185,0.53493243,59104.0,59103.0,0.64066321]
[1724870546420,0.19654643,59104.0,59103.0,0.64066321]
[1724870546921,0.02735343,59104.0,59103.0,0.64066321]
[1724870548780,0.19654643,59104.0,59103.0,0.64066321]
[1724870549254,0.02735343,59104.0,59103.0,0.64066321]
[1724870549738,0.02735343,59104.0,59103.0,0.72156321]
[1724870550236,0.02735343,59104.0,59103.0,0.64066321]
[1724870550237,0.19654643,59104.0,59103.0,0.64066321]
[1724870550504,0.19654643,59104.0,59103.0,0.01306739]
[1724870550505,0.53493243,59104.0,59103.0,0.01306739]
[1724870550819,1.37750443,59104.0,59103.0,0.01306739]
[1724870551065,1.37750443,59104.0,59099.0,0.0008998]
[1724870551066,0.846022,59100.0,59099.0,0.0008998]
[1724870551566,0.846022,59100.0,59099.0,0.0139755]
[1724870551798,0.846022,59100.0,59099.0,0.01397586]
[1724870552248,1.184431,59100.0,59099.0,0.01397586]
[1724870553236,0.846022,59100.0,59099.0,0.01397586]
[1724870554376,0.846022,59100.0,59099.0,0.0008998]
[1724870555313,0.35609966,59105.0,59099.0,0.0616998]
[1724870555530,0.1692,59102.0,59099.0,0.07479109]
[1724870555749,0.169199,59102.0,59099.0,0.07479109]
[1724870555973,0.169202,59101.0,59099.0,0.07479109]
[1724870556210,0.507592,59103.0,59099.0,0.07479109]
[1724870556432,0.169199,59102.0,59099.0,0.07479109]
[1724870556863,0.169195,59104.0,59099.0,0.24399709]
[1724870557127,0.01771466,59105.0,59099.0,0.07479109]
[1724870557363,0.169196,59103.0,59099.0,0.07479109]
[1724870557563,0.000818,59104.0,59100.0,0.169203]
[1724870557781,0.169197,59103.0,59100.0,0.01311632]
[1724870558001,0.169199,59102.0,59100.0,0.01311632]
[1724870559840,0.19654891,59104.0,59100.0,0.01311632]
[1724870560061,0.169196,59103.0,59100.0,0.64071214]
[1724870560290,0.02735391,59104.0,59100.0,0.64071214]
[1724870560527,0.02735391,59104.0,59102.0,0.169198]
[1724870560763,0.169197,59103.0,59100.0,0.64071214]
[1724870561003,0.169197,59103.0,59100.0,0.62759582]
[1724870561234,0.169197,59103.0,59100.0,0.79679882]
[1724870561668,0.507604,59101.0,59100.0,0.62759582]
[1724870562132,0.846007,59101.0,59100.0,0.62759582]
[1724870562409,0.846007,59101.0,59100.0,0.64070762]
[1724870562642,1.18441,59101.0,59100.0,0.64070762]
[1724870563129,1.24951,59101.0,59100.0,0.64070762]
[1724870564754,1.667813,59101.0,59100.0,0.64070762]
[1724870565029,2.19776764,59101.0,59100.0,0.0131118]
[1724870565276,2.19776764,59101.0,59099.0,0.0008998]
[1724870565277,1.61974,59100.0,59099.0,0.0008998]
[1724870565512,1.51748936,59095.0,59094.0,0.008987]
[1724870565756,1.51748936,59095.0,59090.0,0.009009]
[1724870565757,0.514682,59092.0,59090.0,0.009009]
[1724870565999,1.72411885,59092.0,59090.0,0.009009]
[1724870566242,1.87566357,59092.0,59090.0,0.009009]
[1724870566478,1.87366357,59092.0,59090.0,0.009009]
[1724870566713,1.87566357,59092.0,59090.0,0.009009]
[1724870566936,1.82259172,59092.0,59090.0,0.009009]
[1724870568604,1.82259172,59092.0,59091.0,0.0012998]
[1724870569543,1.84230638,59092.0,59091.0,0.0012998]
[1724870571639,1.89337823,59092.0,59091.0,0.0012998]
[1724870572332,1.84030638,59092.0,59091.0,0.0012998]
[1724870573447,1.81230638,59092.0,59091.0,0.0012998]
[1724870574124,1.73240638,59092.0,59091.0,0.0012998]
[1724870574356,1.39395138,59092.0,59091.0,0.0012998]
[1724870574576,1.32885138,59092.0,59091.0,0.0012998]
[1724870574822,1.35185138,59092.0,59091.0,0.0012998]
[1724870576865,1.36086038,59092.0,59091.0,0.0012998]
[1724870580396,1.36086038,59092.0,59060.0,0.0758]
[1724870580397,1.66906,59072.0,59060.0,0.0758]
[1724870580651,1.66906,59072.0,59059.0,0.0662]
[1724870580652,2.00911636,59072.0,59059.0,0.0662]
[1724870580914,0.169322,59059.0,59058.0,0.50540786]
[1724870581169,0.169322,59059.0,59051.0,0.0004]
[1724870581170,0.84671,59052.0,59051.0,0.0004]
[1724870581426,1.42345036,59052.0,59051.0,0.0004]
[1724870581680,1.47452221,59052.0,59051.0,0.0004]
[1724870581935,0.338664,59056.0,59051.0,0.0004]
[1724870582154,0.1,59058.0,59051.0,0.08]
[1724870582155,0.169336,59055.0,59051.0,0.08]
[1724870582373,0.02655861,59055.0,59051.0,0.08]
[1724870583962,0.19589261,59055.0,59051.0,0.08]
[1724870584412,0.02655861,59055.0,59051.0,0.08]
[1724870584736,0.169342,59052.0,59051.0,0.08]
[1724870584963,0.84671,59052.0,59051.0,0.0004]
[1724870585661,0.508026,59052.0,59051.0,0.0004]
[1724870585890,0.55909785,59052.0,59051.0,0.0004]
[1724870586131,0.89778185,59052.0,59051.0,0.0004]
[1724870586347,0.84671,59052.0,59051.0,0.0004]
[1724870586576,0.89778185,59052.0,59051.0,0.0004]
[1724870589043,0.84671,59052.0,59051.0,0.0004]
[1724870590145,0.89778185,59052.0,59051.0,0.0004]
[1724870590361,0.84671,59052.0,59051.0,0.0004]
[1724870591040,0.508026,59052.0,59051.0,0.0004]
[1724870591259,0.84671,59052.0,59051.0,0.0004]
[1724870591705,0.508026,59052.0,59051.0,0.0013009]
[1724870592853,0.36522661,59055.0,59052.0,0.0751]
[1724870593072,0.169339,59053.0,59052.0,0.0751]
[1724870596008,0.02655861,59055.0,59052.0,0.244441]
[1724870596251,0.02655861,59055.0,59053.0,0.0658]
[1724870596477,0.02655861,59055.0,59054.0,1.260455]
[1724870596709,0.02655861,59055.0,59054.0,1.326255]
[1724870597605,0.169297,59068.0,59063.0,0.169308]
[1724870597817,0.169297,59068.0,59064.0,0.310207]
[1724870598086,0.338571,59072.0,59064.0,0.1409]
[1724870598313,0.169297,59068.0,59064.0,0.1409]
[1724870598538,0.169297,59068.0,59064.0,0.310206]
[1724870598766,0.16909324,59068.0,59064.0,0.310206]
[1724870598990,0.169305,59065.0,59064.0,0.1409]
[1724870599220,0.507915,59065.0,59064.0,0.0751]
[1724870599470,0.23805636,59067.0,59063.0,0.62759582]
[1724870599690,0.851537,59064.0,59063.0,0.62759582]
[1724870599917,1.190152,59064.0,59063.0,0.62759582]
[1724870600145,1.313152,59064.0,59063.0,0.62759582]
[1724870601606,0.338661,59056.0,59051.0,0.0764009]
[1724870602060,0.169337,59054.0,59051.0,0.0764009]
[1724870602299,0.169328,59057.0,59053.0,0.169338]
[1724870602553,0.123,59064.0,59052.0,0.0777]
[1724870602813,0.169336,59055.0,59052.0,0.0777]
[1724870603058,0.169334,59055.0,59052.0,0.0777]
[1724870603763,0.169331,59056.0,59052.0,0.247042]
[1724870604229,0.169328,59057.0,59052.0,0.0777]
[1724870604468,0.338644,59059.0,59052.0,0.24704]
[1724870604684,0.169332,59056.0,59052.0,0.24704]
[1724870605641,0.169333,59055.0,59052.0,0.0777]
[1724870605873,0.169336,59054.0,59052.0,0.0777]
[1724870606344,0.338664,59056.0,59052.0,0.0777]
[1724870606345,0.169333,59056.0,59052.0,0.0777]
[1724870606589,0.338658,59057.0,59052.0,0.0777]
[1724870606811,0.169339,59053.0,59052.0,0.0777]
[1724870607039,0.169337,59054.0,59052.0,0.0777]
[1724870607274,0.169337,59054.0,59052.0,0.09047629]
[1724870607512,0.338662,59056.0,59052.0,0.09047629]
[1724870607755,0.02655734,59054.0,59052.0,0.09047629]
[1724870607975,0.02655734,59054.0,59052.0,0.42916029]
[1724870608194,0.02655734,59054.0,59053.0,0.169339]
[1724870608484,0.02655734,59054.0,59053.0,0.18211381]
[1724870609372,0.02655734,59054.0,59053.0,0.52079181]
[1724870609639,0.19589334,59054.0,59053.0,0.01277481]
[1724870609869,1.23491234,59054.0,59053.0,0.01277481]
[1724870610122,0.508026,59052.0,59051.0,0.0013009]
[1724870610364,1.185394,59052.0,59051.0,0.0013009]
[1724870610609,1.30981713,59052.0,59051.0,0.0013009]
[1724870611921,1.33281713,59052.0,59051.0,0.0013009]
[1724870612208,1.41581713,59052.0,59051.0,0.0013009]
[1724870612424,1.270614,59041.0,59040.0,0.008998]
[1724870612661,1.609361,59041.0,59040.0,0.008998]
[1724870612890,1.707361,59041.0,59040.0,0.008998]
[1724870613142,1.41818081,59041.0,59040.0,0.008998]
[1724870613372,1.33518081,59041.0,59040.0,0.008998]
[1724870616192,1.34176674,59041.0,59040.0,0.008998]
[1724870618198,1.50044905,59041.0,59040.0,0.008998]
[1724870618386,1.34176674,59041.0,59040.0,0.008998]
[1724870620442,1.40973674,59041.0,59040.0,0.008998]
[1724870627085,1.6477931,59041.0,59040.0,0.008998]
[1724870631173,1.6497931,59041.0,59040.0,0.008998]
[1724870631383,1.6477931,59041.0,59040.0,0.008998]
[1724870634434,1.7353931,59041.0,59040.0,0.008998]
[1724870635320,1.78597215,59041.0,59040.0,0.008998]
[1724870635538,2.12471915,59041.0,59040.0,0.008998]
[1724870635757,1.78597215,59041.0,59040.0,0.008998]
[1724870636165,2.12471915,59041.0,59040.0,0.008998]
[1724870636393,1.70337215,59041.0,59040.0,0.008998]
[1724870636618,2.04213293,59041.0,59040.0,0.008998]
[1724870637266,1.9915401,59041.0,59040.0,0.008998]
[1724870637482,1.70338667,59041.0,59040.0,0.008998]
[1724870637908,2.04213367,59041.0,59040.0,0.008998]
[1724870639024,1.9915401,59041.0,59040.0,0.008998]
[1724870639248,2.04213367,59041.0,59040.0,0.008998]
[1724870639500,1.40973674,59041.0,59040.0,0.088398]
[1724870639715,1.34176674,59041.0,59040.0,0.088398]
[1724870641972,1.31876674,59041.0,59040.0,0.088398]
[1724870642202,1.31876674,59041.0,59040.0,0.152598]
[1724870642420,0.98001974,59041.0,59040.0,0.152598]
[1724870643573,1.31876674,59041.0,59040.0,0.152598]
[1724870643788,0.98001974,59041.0,59040.0,0.152598]
[1724870645732,1.0306704,59041.0,59040.0,0.152598]
[1724870646375,0.98001974,59041.0,59040.0,0.152598]
[1724870646584,1.05599574,59041.0,59040.0,0.152598]
[1724870647078,0.98001974,59041.0,59040.0,0.152598]
[1724870647290,1.03069615,59041.0,59040.0,0.153298]
[1724870647712,1.03070618,59041.0,59040.0,0.153298]
[1724870648554,1.39479641,59041.0,59040.0,0.153298]
[1724870648767,0.98001974,59041.0,59040.0,0.153298]
[1724870648977,1.31876674,59041.0,59040.0,0.153298]
[1724870649234,1.39479641,59041.0,59040.0,0.153298]
[1724870649461,1.31876674,59041.0,59040.0,0.153298]
[1724870649653,1.39482187,59041.0,59040.0,0.153298]
[1724870649901,1.05607487,59041.0,59040.0,0.153298]
[1724870650620,1.08142658,59041.0,59040.0,0.153298]
[1724870651091,0.98001974,59041.0,59040.0,0.153298]
[1724870651524,1.08142658,59041.0,59040.0,0.153298]
[1724870651983,1.07484065,59041.0,59040.0,0.153298]
[1724870652458,0.97343381,59041.0,59040.0,0.153298]
[1724870652678,1.10019236,59041.0,59040.0,0.153298]
[1724870653563,0.97343381,59041.0,59040.0,0.153298]
[1724870654646,0.63468681,59041.0,59040.0,0.153298]
[1724870654899,0.25362186,59041.0,59040.0,0.153298]
[1724870655156,0.07738482,59041.0,59040.0,0.322674]
[1724870655391,0.07738519,59041.0,59040.0,1.01245226]
[1724870655636,0.02656681,59041.0,59040.0,0.67369926]
[1724870656585,0.02656681,59041.0,59040.0,1.01245226]
[1724870656816,0.02656681,59041.0,59040.0,1.64004808]
[1724870657059,0.02656681,59041.0,59040.0,1.97880108]
[1724870659108,0.02656681,59041.0,59040.0,1.64004808]
[1724870659786,0.02656681,59041.0,59040.0,0.79316608]
[1724870660010,0.02656681,59041.0,59040.0,0.96254208]
[1724870660233,0.53468681,59041.0,59040.0,0.79316608]
[1724870661136,0.53468681,59041.0,59040.0,0.16557026]
[1724870662721,0.02656681,59041.0,59040.0,0.16557026]
[1724870662953,0.19593981,59041.0,59040.0,0.16557026]
[1724870663171,0.02656681,59041.0,59040.0,0.33494626]
[1724870663396,0.02656681,59041.0,59040.0,0.16557026]
[1724870664982,0.19593981,59041.0,59040.0,0.16557026]
[1724870666532,0.53468681,59041.0,59040.0,0.16557026]
[1724870666740,0.19593981,59041.0,59040.0,0.16557026]
[1724870667842,0.02656681,59041.0,59040.0,0.16557026]
[1724870668070,0.19593981,59041.0,59040.0,0.16557026]
[1724870668559,0.02656681,59041.0,59040.0,0.16557026]
[1724870672050,0.02656681,59041.0,59040.0,1.01245226]
[1724870672972,0.02656681,59041.0,59040.0,1.35120526]
[1724870673207,0.02656681,59041.0,59040.0,1.97880108]
[1724870678221,0.02656681,59041.0,59040.0,0.96254208]
[1724870678678,0.02656681,59041.0,59040.0,0.79316608]
[1724870678897,0.02656681,59041.0,59040.0,0.96254208]